fUSD/lending_fUSD_20251222
["ID","MTS","AMOUNT","RATE_DAILY","PERIOD"]
[399524531,1766436648014,-1000.0,0.00016959,2]
[399524532,1766436648023,-500.0,0.00016973,2]
[399524533,1766436648032,-163.76931911,0.00016973,2]
[399524534,1766436648041,-500.0,0.00016973,2]
[399524535,1766436648049,-500.0,0.00016973,2]
[399524536,1766436648058,-500.0,0.00016973,2]
[399524537,1766436648067,-500.0,0.00016973,2]
[399524538,1766436648076,-172.65369625,0.00016973,2]
[399524539,1766436648086,-500.0,0.00016973,2]
[399524540,1766436648096,-160.1870397,0.00016973,2]
[399524541,1766436648109,-500.0,0.00016973,2]
[399524542,1766436648118,-222.91830755,0.00016973,2]
[399524543,1766436648127,-500.0,0.00016973,2]
[399524544,1766436648136,-500.0,0.00016973,2]
[399524545,1766436648147,-500.0,0.00016973,2]
[399524546,1766436648156,-500.0,0.00016973,2]
[399524547,1766436648165,-500.0,0.00016973,2]
[399524548,1766436648176,-165.58172588,0.00016973,2]
[399524549,1766436648185,-379.34447673,0.00016973,2]
[399524550,1766436648195,-500.0,0.00016973,2]
[399524551,1766436648206,-500.0,0.00016973,2]
[399524552,1766436648216,-500.0,0.00016973,2]
[399524553,1766436648225,-201.72114218,0.00016973,2]
[399524554,1766436648235,-500.51901365,0.00016973,2]
[399524555,1766436648244,-216.339116,0.00016973,2]
[399524556,1766436648254,-500.0,0.00016973,2]
[399524557,1766436648264,-500.0,0.00016973,2]
[399524558,1766436648274,-500.0,0.00016973,2]
[399524559,1766436648283,-500.0,0.00016973,2]
[399524560,1766436648293,-500.0,0.00016973,2]
[399524561,1766436648303,-500.0,0.00016973,2]
[399524562,1766436648313,-165.49824072,0.00016973,2]
[399524563,1766436648323,-500.0,0.00016973,2]
[399524564,1766436648334,-500.0,0.00016973,2]
[399524565,1766436648345,-165.36365012,0.00016973,2]
[399524566,1766436648355,-500.0,0.00016973,2]
[399524567,1766436648366,-500.0,0.00016973,2]
[399524568,1766436648380,-616.91721047,0.00016973,2]
[399524569,1766436648391,-500.0,0.00016973,2]
[399524570,1766436648403,-160.27643791,0.00016973,2]
[399524571,1766436648413,-500.0,0.00016973,2]
[399524572,1766436648424,-500.0,0.00016973,2]
[399524573,1766436648434,-150.0,0.00016983,2]
[399524574,1766436648445,-500.0,0.00016983,2]
[399524575,1766436648455,-217.8076658,0.00016983,2]
[399524576,1766436648468,-52648.51,0.00016986,2]
[399524577,1766436648478,-150.00000001,0.00016986,2]
[399524578,1766436648488,-150.0,0.00016986,2]
[399524579,1766436648498,-178.51553078,0.00016986,2]
[399524580,1766436648508,-190.72072337,0.00016986,2]
[399524581,1766436648518,-150.0,0.00016986,2]
[399524582,1766436648528,-151.97105388,0.00016986,2]
[399524583,1766436648537,-150.00000001,0.00016986,2]
[399524584,1766436648547,-153.06018393,0.00016986,2]
[399524585,1766436648556,-153.06730128,0.00016986,2]
[399524586,1766436648566,-150.0,0.00016986,2]
[399524587,1766436648577,-2000.0,0.0001699,2]
[399524588,1766436648586,-2000.0,0.0001699,2]
[399524589,1766436648601,-2000.0,0.0001699,2]
[399524590,1766436648611,-1947.651,0.0001699,2]
[399524591,1766436648621,-1000.0,0.0001699,2]
[399524592,1766436648630,-1000.0,0.0001699,2]
[399524593,1766436648640,-1000.0,0.0001699,2]
[399524594,1766436648651,-1000.0,0.0001699,2]
[399524595,1766436648660,-1000.0,0.0001699,2]
[399524596,1766436648671,-1324.53170706,0.0001699,2]
[399524597,1766436648680,-1324.53170706,0.0001699,2]
[399524598,1766436648690,-500.0,0.00016999,2]
[399524599,1766436648700,-500.0,0.00016999,2]
[399524600,1766436648710,-500.0,0.00016999,2]
[399524601,1766436648719,-500.0,0.00016999,2]
[399524602,1766436648730,-510.46904763,0.00016999,2]
[399524603,1766436648740,-594.65582384,0.00016999,2]
[399524604,1766436648750,-500.0,0.00016999,2]
[399524605,1766436648759,-500.0,0.00016999,2]
[399524606,1766436648770,-500.0,0.00016999,2]
[399524607,1766436648779,-500.0,0.00016999,2]
[399524608,1766436648789,-518.50192951,0.00016999,2]
[399524609,1766436648799,-500.0,0.00016999,2]
[399524610,1766436648808,-500.0,0.00016999,2]
[399524611,1766436648818,-500.0,0.00016999,2]
[399524612,1766436648827,-500.0,0.00016999,2]
[399524613,1766436648836,-508.36812857,0.00016999,2]
[399524614,1766436648849,-500.0,0.00016999,2]
[399524615,1766436648859,-500.0,0.00016999,2]
[399524616,1766436648868,-500.0,0.00016999,2]
[399524617,1766436648877,-376.9654415,0.00016999,2]
[399524618,1766436648887,-537.61,0.00016999,2]
[399524619,1766436648898,-537.61,0.00016999,2]
[399524620,1766436648908,-537.61,0.00016999,2]
[399524621,1766436648917,-537.61,0.00016999,2]
[399524622,1766436648927,-537.61,0.00016999,2]
[399524623,1766436648937,-537.61,0.00016999,2]
[399524624,1766436648946,-537.61,0.00016999,2]
[399524625,1766436648955,-537.61,0.00016999,2]
[399524626,1766436648965,-537.61,0.00016999,2]
[399524627,1766436648975,-537.61,0.00016999,2]
[399524628,1766436648985,-537.61,0.00016999,2]
[399524629,1766436648994,-537.61,0.00016999,2]
[399524630,1766436649004,-537.61,0.00016999,2]
[399524631,1766436649013,-537.61,0.00016999,2]
[399524632,1766436649023,-537.61,0.00016999,2]
[399524633,1766436649032,-537.61,0.00016999,2]
[399524634,1766436649041,-537.61,0.00016999,2]
[399524635,1766436649050,-537.61,0.00016999,2]
[399524636,1766436649060,-537.83739405,0.00016999,2]
[399524637,1766436649069,-500.0,0.00016999,2]
[399524638,1766436649079,-500.0,0.00016999,2]
[399524639,1766436649088,-500.0,0.00016999,2]
[399524640,1766436649101,-500.0,0.00016999,2]
[399524641,1766436649113,-500.0,0.00016999,2]
[399524642,1766436649122,-500.0,0.00016999,2]
[399524643,1766436649132,-500.0,0.00016999,2]
[399524644,1766436649142,-500.0,0.00016999,2]
[399524645,1766436649153,-500.0,0.00016999,2]
[399524646,1766436649163,-500.0,0.00016999,2]
[399524647,1766436649172,-500.0,0.00016999,2]
[399524648,1766436649183,-500.0,0.00016999,2]
[399524649,1766436649193,-591.86528871,0.00016999,2]
[399524650,1766436649202,-500.0,0.00016999,2]
[399524651,1766436649212,-500.0,0.00016999,2]
[399524652,1766436649222,-500.0,0.00016999,2]
[399524653,1766436649231,-500.0,0.00016999,2]
[399524654,1766436649240,-500.0,0.00016999,2]
[399524655,1766436649251,-500.0,0.00016999,2]
[399524656,1766436649260,-170.60009205,0.00016999,2]
[399524657,1766436649270,-300.0,0.00016999,2]
[399524658,1766436649280,-666.0,0.00016999,2]
[399524659,1766436649289,-500.0,0.00016999,2]
[399524660,1766436649299,-500.0,0.00016999,2]
[399524661,1766436649310,-500.0,0.00016999,2]
[399524662,1766436649320,-500.0,0.00016999,2]
[399524663,1766436649330,-500.0,0.00016999,2]
[399524664,1766436649339,-500.0,0.00016999,2]
[399524665,1766436649351,-500.0,0.00016999,2]
[399524666,1766436649360,-500.0,0.00016999,2]
[399524667,1766436649369,-500.0,0.00016999,2]
[399524668,1766436649380,-500.0,0.00016999,2]
[399524669,1766436649389,-500.0,0.00016999,2]
[399524670,1766436649398,-500.0,0.00016999,2]
[399524671,1766436649407,-500.0,0.00016999,2]
[399524672,1766436649417,-500.0,0.00016999,2]
[399524673,1766436649426,-500.0,0.00016999,2]
[399524674,1766436649436,-500.0,0.00016999,2]
[399524675,1766436649445,-500.0,0.00016999,2]
[399524676,1766436649454,-511.68,0.00016999,2]
[399524677,1766436649464,-300.0,0.00016999,2]
[399524678,1766436649474,-300.0,0.00016999,2]
[399524679,1766436649485,-666.0,0.00016999,2]
[399524680,1766436649494,-300.0,0.00016999,2]
[399524681,1766436649504,-300.0,0.00016999,2]
[399524682,1766436649513,-666.0,0.00016999,2]
[399524683,1766436649523,-2369626.96112183,0.00017,2]
[399524684,1766436649533,-2074851.47178959,0.00017,2]
[399524685,1766436649543,-257.0,0.00017,2]
[399524686,1766436649554,-805957.579652,0.00017,2]
[399524687,1766436649563,-2000.0,0.00017,2]
[399524688,1766436649573,-5765.0563739,0.00017,2]
[399524689,1766436649583,-200.0,0.00017,2]
[399524690,1766436649592,-151.0,0.00017,2]
[399524691,1766436649605,-151.0,0.00017,2]
[399524692,1766436649615,-151.0,0.00017,2]
[399524693,1766436649624,-151.0,0.00017,2]
[399524694,1766436649634,-151.0,0.00017,2]
[399524695,1766436649643,-151.0,0.00017,2]
[399524696,1766436649653,-151.0,0.00017,2]
[399524697,1766436649662,-151.0,0.00017,2]
[399524698,1766436649672,-250.0,0.00017,2]
[399524699,1766436649681,-151.0,0.00017,2]
[399524700,1766436649690,-248.941271,0.00017,2]
[399524701,1766436649700,-5041.8955319,0.00017,2]
[399524702,1766436649709,-206.81745602,0.00017,2]
[399524703,1766436649719,-1352.0989946,0.00017,2]
[399524704,1766436649728,-151.0,0.00017,2]
[399524705,1766436649738,-151.0,0.00017,2]
[399524706,1766436649748,-151.0,0.00017,2]
[399524707,1766436649757,-151.0,0.00017,2]
[399524708,1766436649767,-151.0,0.00017,2]
[399524709,1766436649776,-151.0,0.00017,2]
[399524710,1766436649785,-1000.0,0.00017,2]
[399524711,1766436649795,-151.0,0.00017,2]
[399524712,1766436649804,-151.0,0.00017,2]
[399524713,1766436649814,-151.0,0.00017,2]
[399524714,1766436649823,-151.0,0.00017,2]
[399524715,1766436649832,-151.0,0.00017,2]
[399524716,1766436649842,-151.0,0.00017,2]
[399524717,1766436649854,-151.0,0.00017,2]
[399524718,1766436649863,-151.0,0.00017,2]
[399524719,1766436649872,-191.859508,0.00017,2]
[399524720,1766436649882,-191.859508,0.00017,2]
[399524721,1766436649891,-191.859508,0.00017,2]
[399524722,1766436649900,-191.859508,0.00017,2]
[399524723,1766436649910,-408.066688,0.00017,2]
[399524724,1766436649919,-408.066688,0.00017,2]
[399524725,1766436649929,-408.066688,0.00017,2]
[399524726,1766436649938,-408.066688,0.00017,2]
[399524727,1766436649947,-151.0,0.00017,2]
[399524728,1766436649957,-151.0,0.00017,2]
[399524729,1766436649966,-1063.1466147,0.00017,2]
[399524730,1766436649976,-362.325055,0.00017,2]
[399524731,1766436649986,-362.325055,0.00017,2]
[399524732,1766436649996,-520.303541,0.00017,2]
[399524733,1766436650006,-362.325055,0.00017,2]
[399524734,1766436650016,-520.303541,0.00017,2]
[399524735,1766436650025,-520.303541,0.00017,2]
[399524736,1766436650034,-362.325055,0.00017,2]
[399524737,1766436650044,-520.303541,0.00017,2]
[399524738,1766436650053,-151.0,0.00017,2]
[399524739,1766436650062,-416.832707,0.00017,2]
[399524740,1766436650072,-416.832707,0.00017,2]
[399524741,1766436650082,-416.832707,0.00017,2]
[399524742,1766436650091,-416.832707,0.00017,2]
[399524743,1766436650103,-7000.0,0.00017,2]
[399524744,1766436650116,-7000.0,0.00017,2]
[399524745,1766436650126,-151.0,0.00017,2]
[399524746,1766436650136,-151.0,0.00017,2]
[399524747,1766436650148,-305.0,0.00017,2]
[399524748,1766436650157,-305.0,0.00017002,2]
[399524749,1766436650167,-7000.0,0.0001705,2]
[399524750,1766436650178,-305.0,0.0001707,2]
[399524751,1766436650189,-638.0,0.00017077,2]
[399524752,1766436650199,-305.0,0.0001708,2]
[399524753,1766436650208,-1000.0,0.000171,2]
[399524754,1766436650218,-305.0,0.00017131,2]
[399524755,1766436650228,-322.0,0.00017139,2]
[399524756,1766436650237,-4621.0,0.00017157,2]
[399524757,1766436650246,-305.0,0.00017174,2]
[399524758,1766436650256,-7000.0,0.0001718,2]
[399524759,1766436650266,-1000.0,0.000172,2]
[399524760,1766436650276,-200.0,0.00017219,2]
[399524761,1766436650286,-200.0,0.00017219,2]
[399524762,1766436650295,-500.0,0.00017219,2]
[399524763,1766436650306,-423.11,0.00017238,2]
[399524764,1766436650315,-151.0,0.00017245,2]
[399524765,1766436650325,-151.0,0.00017245,2]
[399524766,1766436650334,-225.18697532,0.00017245,2]
[399524767,1766436650346,-617.40005154,0.00017245,2]
[399524768,1766436650355,-500.0,0.00017288,2]
[399524769,1766436650364,-7000.0,0.0001731,2]
[399524770,1766436650374,-334.5472959,0.00017518,2]
[399524771,1766436650384,-287.61899177,0.00017518,2]
[399524772,1766436650394,-151.0,0.00017518,2]
[399524773,1766436650403,-303.0636033,0.00017521,2]
[399524774,1766436650413,-494.48571485,0.00017521,2]
[399524775,1766436650422,-1000.0,0.00017521,2]
[399524776,1766436650432,-407.45343911,0.00017521,2]
[399524777,1766436650441,-547.95181922,0.00017521,2]
[399524778,1766436650450,-1000.0,0.00017521,2]
[399524779,1766436650460,-500.0,0.00017521,2]
[399524780,1766436650469,-1000.0,0.00017521,2]
[399524781,1766436650479,-1000.0,0.00017521,2]
[399524782,1766436650488,-1000.0,0.00017521,2]
[399524783,1766436650498,-500.0,0.00017521,2]
[399524784,1766436650507,-600.0,0.00017534,2]
[399524785,1766436650517,-600.0,0.00017534,2]
[399524786,1766436650526,-1607.25325449,0.00017534,2]
[399524787,1766436650536,-1600.0,0.00017541,2]
[399524788,1766436650545,-2972.2,0.0001758,2]
[399524789,1766436650555,-881.09,0.00017594,2]
[399524790,1766436650564,-154.0,0.000176,2]
[399524791,1766436650574,-154.0,0.000176,2]
[399524792,1766436650583,-347.0,0.00017623,2]
[399524793,1766436650594,-398.55544668,0.00017697,2]
[399524794,1766436650604,-215.0738,0.00017765,2]
[399524795,1766436650613,-200.0,0.00017767,2]
[399524796,1766436650623,-200.0,0.00017767,2]
[399524797,1766436650632,-500.0,0.00017767,2]
[399524798,1766436650853,-151.0,0.00017793,2]
[399524799,1766436650869,-171.90308076,0.00017793,2]
[399524800,1766436650878,-640.24385345,0.00017793,2]
[399524801,1766436650888,-1000.0,0.00017984,2]
[399524802,1766436650897,-423.11,0.00017987,2]
[399524803,1766436650907,-715.12,0.00017999,2]
[399524804,1766436650916,-715.12,0.00017999,2]
[399524805,1766436650925,-715.12,0.00017999,2]
[399524806,1766436650934,-300.0,0.00017999,2]
[399524807,1766436650943,-666.0,0.00017999,2]
[399524808,1766436650952,-300.0,0.00017999,2]
[399524809,1766436650961,-300.0,0.00017999,2]
[399524810,1766436650970,-666.0,0.00017999,2]
[399524811,1766436650979,-60476.95558364,0.00018,7]
[399524812,1766436650988,-615616.161847,0.00018,2]
[399524813,1766436650997,-151.0,0.00018,2]
[399524814,1766436651007,-151.0,0.00018,2]
[399524815,1766436651016,-151.0,0.00018,2]
[399524816,1766436651025,-151.0,0.00018,2]
[399524817,1766436651034,-249.810564,0.00018,2]
[399524818,1766436651043,-151.0,0.00018,2]
[399524819,1766436651052,-151.0,0.00018,2]
[399524820,1766436651062,-151.0,0.00018,2]
[399524821,1766436651071,-151.0,0.00018,2]
[399524822,1766436651080,-151.651523,0.00018,2]
[399524823,1766436651089,-151.0,0.00018,2]
[399524824,1766436651099,-151.0,0.00018,2]
[399524825,1766436651109,-151.0,0.00018,2]
[399524826,1766436651120,-151.0,0.00018,2]
[399524827,1766436651130,-151.0,0.00018,2]
[399524828,1766436651139,-151.0,0.00018,2]
[399524829,1766436651149,-270.99669,0.00018,2]
[399524830,1766436651158,-151.0,0.00018,2]
[399524831,1766436651168,-151.0,0.00018,2]
[399524832,1766436651177,-151.0,0.00018,2]
[399524833,1766436651188,-151.0,0.00018,2]
[399524834,1766436651199,-191.859508,0.00018,2]
[399524835,1766436651208,-191.859508,0.00018,2]
[399524836,1766436651219,-191.859508,0.00018,2]
[399524837,1766436651228,-191.859508,0.00018,2]
[399524838,1766436651237,-408.066688,0.00018,2]
[399524839,1766436651246,-408.066688,0.00018,2]
[399524840,1766436651256,-408.066688,0.00018,2]
[399524841,1766436651266,-408.066688,0.00018,2]
[399524842,1766436651275,-151.0,0.00018,2]
[399524843,1766436651284,-151.0,0.00018,2]
[399524844,1766436651294,-362.325055,0.00018,2]
[399524845,1766436651303,-362.325055,0.00018,2]
[399524846,1766436651312,-520.303541,0.00018,2]
[399524847,1766436651322,-362.325055,0.00018,2]
[399524848,1766436651331,-520.303541,0.00018,2]
[399524849,1766436651340,-520.303541,0.00018,2]
[399524850,1766436651351,-362.325055,0.00018,2]
[399524851,1766436651360,-520.303541,0.00018,2]
[399524852,1766436651370,-151.0,0.00018,2]
[399524853,1766436651379,-416.832707,0.00018,2]
[399524854,1766436651388,-416.832707,0.00018,2]
[399524855,1766436651398,-416.832707,0.00018,2]
[399524856,1766436651408,-416.832707,0.00018,2]
[399524857,1766436651416,-151.0,0.00018,2]
[399524858,1766436651426,-151.0,0.00018,2]
[399524859,1766436651434,-519.0,0.00018027,2]
[399524860,1766436651444,-347.0,0.0001803,2]
[399524861,1766436651452,-1330.71256854,0.00018068,2]
[399524862,1766436651462,-1500.0,0.00018068,2]
[399524863,1766436651471,-502.00400434,0.00018068,2]
[399524864,1766436651480,-580.20183557,0.00018068,2]
[399524865,1766436651489,-1000.0,0.00018082,2]
[399524866,1766436651498,-600.0,0.00018082,2]
[399524867,1766436651507,-600.0,0.00018082,2]
[399524868,1766436651516,-409.91209509,0.00018083,2]
[399524869,1766436651526,-151.84826967,0.00018121,2]
[399524870,1766436651535,-347.0,0.00018204,2]
[399524871,1766436651544,-420.39204413,0.00018228,2]
[399524872,1766436651553,-307.49673677,0.00018294,2]
[399524873,1766436651563,-200.0,0.00018315,2]
[399524874,1766436651572,-200.0,0.00018315,2]
[399524875,1766436651580,-500.0,0.00018315,2]
[399524876,1766436651589,-159.11222724,0.00018341,2]
[399524877,1766436651599,-663.93287602,0.00018341,2]
[399524878,1766436651608,-598.34669379,0.00018379,2]
[399524879,1766436651617,-300.0,0.00018499,2]
[399524880,1766436651626,-300.0,0.00018499,2]
[399524881,1766436651635,-1344.01,0.000185,2]
[399524882,1766436651644,-617.043,0.000185,2]
[399524883,1766436651653,-3457.0,0.000185,2]
[399524884,1766436651662,-1643.057,0.000185,2]
[399524885,1766436651671,-161.099,0.000185,2]
[399524886,1766436651680,-1264.744,0.000185,2]
[399524887,1766436651688,-518.0,0.000185,2]
[399524888,1766436651698,-1198.0,0.000185,2]
[399524889,1766436651707,-911.0,0.000185,2]
[399524890,1766436651717,-2429.0,0.000185,2]
[399524891,1766436651726,-4802.0,0.000185,2]
[399524892,1766436651735,-564.0,0.000185,2]
[399524893,1766436651744,-437.0,0.00018544,2]
[399524894,1766436651754,-177.563,0.000186,2]
[399524895,1766436651762,-150.271,0.000186,2]
[399524896,1766436651771,-150.0,0.000186,2]
[399524897,1766436651788,-5765.0563739,0.0001871,2]
[399524898,1766436651800,-5041.8955319,0.0001871,2]
[399524899,1766436651809,-2972.2,0.00018722,2]
[399524900,1766436651819,-423.11,0.00018736,2]
[399524901,1766436651828,-500.0,0.00018745,2]
[399524902,1766436651837,-500.0,0.00018745,2]
[399524903,1766436651847,-187.58612974,0.00018745,2]
[399524904,1766436651856,-179.47316237,0.00018745,2]
[399524905,1766436651866,-473.51090272,0.00018745,2]
[399524906,1766436651876,-517.55500559,0.00018745,2]
[399524907,1766436651885,-500.0,0.00018745,2]
[399524908,1766436651895,-500.0,0.00018745,2]
[399524909,1766436651906,-500.0,0.00018745,2]
[399524910,1766436651915,-500.0,0.00018745,2]
[399524911,1766436651925,-500.0,0.00018745,2]
[399524912,1766436651934,-160.20853217,0.00018745,2]
[399524913,1766436651943,-500.0,0.00018745,2]
[399524914,1766436651952,-500.0,0.00018745,2]
[399524915,1766436651962,-500.0,0.00018745,2]
[399524916,1766436651971,-500.0,0.00018745,2]
[399524917,1766436651980,-500.0,0.00018745,2]
[399524918,1766436651989,-500.0,0.00018745,2]
[399524919,1766436651999,-500.0,0.00018745,2]
[399524920,1766436652008,-500.0,0.00018745,2]
[399524921,1766436652017,-160.20756719,0.00018745,2]
[399524922,1766436652027,-500.0,0.00018745,2]
[399524923,1766436652036,-500.0,0.00018745,2]
[399524924,1766436652045,-607.27794766,0.00018745,2]
[399524925,1766436652054,-162.09587218,0.00018745,2]
[399524926,1766436652063,-500.0,0.00018745,2]
[399524927,1766436652073,-500.0,0.00018745,2]
[399524928,1766436652082,-500.0,0.00018745,2]
[399524929,1766436652091,-500.0,0.00018745,2]
[399524930,1766436652101,-192.33860374,0.00018745,2]
[399524931,1766436652115,-500.0,0.00018745,2]
[399524932,1766436652125,-523.16788729,0.00018745,2]
[399524933,1766436652134,-500.0,0.00018745,2]
[399524934,1766436652144,-500.0,0.00018745,2]
[399524935,1766436652155,-577.70558009,0.00018745,2]
[399524936,1766436652164,-500.0,0.00018745,2]
[399524937,1766436652174,-500.0,0.00018745,2]
[399524938,1766436652183,-500.0,0.00018745,2]
[399524939,1766436652193,-220.3394429,0.00018745,2]
[399524940,1766436652203,-500.0,0.00018745,2]
[399524941,1766436652212,-500.0,0.00018745,2]
[399524942,1766436652222,-500.45563157,0.00018745,2]
[399524943,1766436652231,-344.75321982,0.00018745,2]
[399524944,1766436652240,-500.0,0.00018745,2]
[399524945,1766436652250,-468.6988227,0.00018745,2]
[399524946,1766436652259,-500.0,0.00018745,2]
[399524947,1766436652268,-500.0,0.00018745,2]
[399524948,1766436652277,-500.0,0.00018745,2]
[399524949,1766436652287,-159.48629423,0.00018745,2]
[399524950,1766436652296,-500.0,0.00018745,2]
[399524951,1766436652305,-166.96828513,0.00018745,2]
[399524952,1766436652315,-500.0,0.00018745,2]
[399524953,1766436652324,-323.69632607,0.00018745,2]
[399524954,1766436652333,-500.0,0.00018745,2]
[399524955,1766436652347,-500.0,0.00018745,2]
[399524956,1766436652356,-500.16141079,0.00018745,2]
[399524957,1766436652366,-500.0,0.00018745,2]
[399524958,1766436652375,-161.12986217,0.00018745,2]
[399524959,1766436652384,-516.53532775,0.00018745,2]
[399524960,1766436652394,-395.24069311,0.00018745,2]
[399524961,1766436652403,-500.0,0.00018745,2]
[399524962,1766436652412,-500.19873097,0.00018745,2]
[399524963,1766436652422,-500.0,0.00018745,2]
[399524964,1766436652431,-500.0,0.00018745,2]
[399524965,1766436652441,-1000.0,0.0001876,2]
[399524966,1766436652450,-150.9,0.000188,2]
[399524967,1766436652460,-150.9,0.000188,2]
[399524968,1766436652470,-150.9,0.000188,2]
[399524969,1766436652480,-150.9,0.000188,2]
[399524970,1766436652489,-150.9,0.000188,2]
[399524971,1766436652498,-200.0,0.00018863,2]
[399524972,1766436652509,-200.0,0.00018863,2]
[399524973,1766436652519,-500.0,0.00018863,2]
[399524974,1766436652530,-346.92554586,0.00018887,2]
[399524975,1766436652541,-298.26089446,0.00018887,2]
[399524976,1766436652552,-151.0,0.00018887,2]
[399524977,1766436652562,-599.60298507,0.00018888,2]
[399524978,1766436652572,-642.94,0.00018888,2]
[399524979,1766436652582,-747.8093786,0.00018888,2]
[399524980,1766436652591,-688.49839244,0.00018889,2]
[399524981,1766436652601,-591.80368577,0.00018899,2]
[399524982,1766436652610,-155.80376723,0.000189,2]
[399524983,1766436652620,-715.12,0.00018999,2]
[399524984,1766436652629,-300.0,0.00018999,2]
[399524985,1766436652639,-300.0,0.00018999,2]
[399524986,1766436652648,-89369.69229523,0.00019,2]
[399524987,1766436652658,-162.24607065,0.00019,2]
[399524988,1766436652667,-1630.00561313,0.00019,2]
[399524989,1766436652676,-300.0,0.00019,2]
[399524990,1766436652686,-356.89133829,0.0001901,7]
[399524991,1766436652695,-500.0,0.00019088,3]
[399524992,1766436652705,-300.0,0.00019177,2]
[399524993,1766436652719,-715.0,0.00019178,2]
[399524994,1766436652730,-20061.77,0.00019178,2]
[399524995,1766436652739,-151.0,0.00019178,2]
[399524996,1766436652749,-151.0,0.00019178,2]
[399524997,1766436652759,-153.82996,0.00019178,2]
[399524998,1766436652768,-2282.131091,0.00019178,2]
[399524999,1766436652777,-2282.131091,0.00019178,2]
[399525000,1766436652787,-2282.131091,0.00019178,2]
[399525001,1766436652796,-2282.131091,0.00019178,2]
[399525002,1766436652806,-2282.131091,0.00019178,2]
[399525003,1766436652815,-2282.131091,0.00019178,2]
[399525004,1766436652825,-2282.131091,0.00019178,2]
[399525005,1766436652835,-2282.131091,0.00019178,2]
[399525006,1766436652844,-151.0,0.00019178,2]
[399525007,1766436652853,-151.0,0.00019178,2]
[399525008,1766436652863,-300.0,0.00019246,2]
[399525009,1766436652874,-179833.4438206,0.00019247,2]
[399525010,1766436652885,-11621.41090142,0.00019249,2]
[399525011,1766436652894,-1000.0,0.00019293,2]
[399525012,1766436652904,-1000.0,0.00019293,2]
[399525013,1766436652914,-1000.0,0.00019293,2]
[399525014,1766436652924,-1000.0,0.00019293,2]
[399525015,1766436652935,-1000.0,0.00019293,2]
[399525016,1766436652944,-1000.0,0.00019293,2]
[399525017,1766436652954,-1000.0,0.00019293,2]
[399525018,1766436652963,-1000.0,0.00019293,2]
[399525019,1766436652973,-1000.0,0.00019293,2]
[399525020,1766436652982,-1000.0,0.00019293,2]
[399525021,1766436652992,-1000.0,0.00019293,2]
[399525022,1766436653001,-1000.0,0.00019293,2]
[399525023,1766436653011,-1000.0,0.00019293,2]
[399525024,1766436653021,-189.51040259,0.00019293,2]
[399525025,1766436653032,-1000.0,0.00019293,2]
[399525026,1766436653042,-867.4376246,0.00019293,2]
[399525027,1766436653052,-1000.0,0.00019293,2]
[399525028,1766436653062,-1000.0,0.00019293,2]
[399525029,1766436653072,-1000.0,0.00019293,2]
[399525030,1766436653082,-1000.0,0.00019293,2]